[Event "Early-Titled-Tuesday-Blitz-March-05-2024"]
[Site "Chess.com"]
[Date "2024.03.05"]
[Round "8"]
[White "Barmen_EV"]
[Black "mertfelin"]
[Result "1-0"]
[WhiteElo "2487"]
[BlackElo "2346"]
[TimeControl "180+1"]
[EndTime "9:29:24 PST"]
[Termination "Barmen_EV won by resignation"]

1. e4 {[%clk 0:03:00.9]} 1... e5 {[%clk 0:03:00.4]} 2. Nf3 {[%clk 0:03:00.5]}
2... Nc6 {[%clk 0:02:54.8]} 3. d4 {[%clk 0:03:00]} 3... exd4 {[%clk 0:02:55.2]}
4. Bc4 {[%clk 0:02:59.4]} 4... Bc5 {[%clk 0:02:55.8]} 5. O-O {[%clk 0:02:59.1]}
5... Nf6 {[%clk 0:02:55.6]} 6. c3 {[%clk 0:02:59.3]} 6... Nxe4 {[%clk
0:02:53.6]} 7. cxd4 {[%clk 0:02:58.9]} 7... d5 {[%clk 0:02:54.3]} 8. dxc5 {[%clk
0:02:56.7]} 8... dxc4 {[%clk 0:02:54.9]} 9. Qe2 {[%clk 0:02:57.4]} 9... Qd3
{[%clk 0:02:55.4]} 10. Re1 {[%clk 0:02:52.5]} 10... f5 {[%clk 0:02:51]} 11. Nc3
{[%clk 0:02:48.2]} 11... O-O {[%clk 0:02:51.4]} 12. Nxe4 {[%clk 0:02:45.1]}
12... fxe4 {[%clk 0:02:52.3]} 13. Qxe4 {[%clk 0:02:45.8]} 13... Bf5 {[%clk
0:02:52.8]} 14. Qxd3 {[%clk 0:02:43.9]} 14... cxd3 {[%clk 0:02:51.7]} 15. Bd2
{[%clk 0:02:37.4]} 15... Rad8 {[%clk 0:02:51.6]} 16. a3 {[%clk 0:02:34.4]} 16...
Rd5 {[%clk 0:02:51.8]} 17. b4 {[%clk 0:02:34.4]} 17... a6 {[%clk 0:02:52.4]} 18.
Re3 {[%clk 0:02:32.1]} 18... Bg4 {[%clk 0:02:51.9]} 19. Ne1 {[%clk 0:02:18.9]}
19... Be2 {[%clk 0:02:46.6]} 20. f3 {[%clk 0:02:12]} 20... Ne5 {[%clk
0:02:45.4]} 21. Ra2 {[%clk 0:02:04.9]} 21... Kf7 {[%clk 0:02:33.6]} 22. Kf2
{[%clk 0:01:58.6]} 22... Rfd8 {[%clk 0:02:25.3]} 23. h3 {[%clk 0:01:46.8]} 23...
g5 {[%clk 0:02:17.8]} 24. Re4 {[%clk 0:01:37.1]} 24... Kg6 {[%clk 0:02:06.4]}
25. h4 {[%clk 0:01:31.8]} 25... h6 {[%clk 0:01:58.5]} 26. Bc3 {[%clk 0:01:22.6]}
26... Re8 {[%clk 0:01:48.3]} 27. Rd2 {[%clk 0:01:10.7]} 27... Kf7 {[%clk
0:01:12.7]} 28. hxg5 {[%clk 0:01:04.6]} 28... hxg5 {[%clk 0:00:58.2]} 29. Rxe5
{[%clk 0:01:03.9]} 29... Rexe5 {[%clk 0:00:57.6]} 30. Bxe5 {[%clk 0:01:04.8]}
30... Rxe5 {[%clk 0:00:58.2]} 31. Nxd3 {[%clk 0:01:05.2]} 31... Bxd3 {[%clk
0:00:58.8]} 32. Rxd3 {[%clk 0:01:06.1]} 32... Re7 {[%clk 0:00:56.2]} 33. a4
{[%clk 0:01:03.1]} 33... Kf6 {[%clk 0:00:46.7]} 34. Kg3 {[%clk 0:00:59.7]} 34...
a5 {[%clk 0:00:44.7]} 35. bxa5 {[%clk 0:00:57.3]} 35... Re5 {[%clk 0:00:45.3]}
36. Rc3 {[%clk 0:00:56.2]} 36... Kf5 {[%clk 0:00:45.2]} 37. Rb3 {[%clk
0:00:40.3]} 37... Rxc5 {[%clk 0:00:45.1]} 38. Rb5 {[%clk 0:00:40.9]} 38... Rxb5
{[%clk 0:00:31.9]} 39. axb5 {[%clk 0:00:41.8]} 1-0

[Event "Early-Titled-Tuesday-Blitz-March-05-2024"]
[Site "Chess.com"]
[Date "2024.03.05"]
[Round "8"]
[White "Pelusiansky"]
[Black "publicaccountcze"]
[Result "1-0"]
[WhiteElo "2571"]
[BlackElo "2203"]
[TimeControl "180+1"]
[EndTime "9:29:25 PST"]
[Termination "Pelusiansky won by resignation"]

1. c4 {[%clk 0:03:00.9]} 1... c5 {[%clk 0:02:58.9]} 2. Nc3 {[%clk 0:02:58.5]}
2... Nc6 {[%clk 0:02:57.4]} 3. g3 {[%clk 0:02:58.9]} 3... g6 {[%clk 0:02:57.3]}
4. Bg2 {[%clk 0:02:59.5]} 4... Bg7 {[%clk 0:02:58.1]} 5. Nf3 {[%clk 0:02:59.7]}
5... Nf6 {[%clk 0:02:58.6]} 6. O-O {[%clk 0:03:00.1]} 6... O-O {[%clk
0:02:59.1]} 7. d3 {[%clk 0:03:00.7]} 7... d6 {[%clk 0:02:59.1]} 8. a3 {[%clk
0:02:58.2]} 8... a5 {[%clk 0:02:44.9]} 9. Rb1 {[%clk 0:02:54.7]} 9... Bd7 {[%clk
0:02:35.9]} 10. Ne1 {[%clk 0:02:52.6]} 10... e6 {[%clk 0:02:22.7]} 11. Nc2
{[%clk 0:02:50.6]} 11... Qe7 {[%clk 0:02:20.4]} 12. b4 {[%clk 0:02:30.5]} 12...
axb4 {[%clk 0:02:19]} 13. axb4 {[%clk 0:02:31.4]} 13... Nxb4 {[%clk 0:01:59.6]}
14. Nxb4 {[%clk 0:02:29.5]} 14... cxb4 {[%clk 0:02:00.5]} 15. Rxb4 {[%clk
0:02:28.1]} 15... Bc6 {[%clk 0:02:01.2]} 16. Qb3 {[%clk 0:02:13.7]} 16... Nd7
{[%clk 0:01:44.7]} 17. Bxc6 {[%clk 0:01:56]} 17... bxc6 {[%clk 0:01:44.5]} 18.
Rb7 {[%clk 0:01:39]} 18... Rfb8 {[%clk 0:01:42.9]} 19. Bd2 {[%clk 0:01:28.3]}
19... Rxb7 {[%clk 0:01:36.3]} 20. Qxb7 {[%clk 0:01:27.6]} 20... Ra3 {[%clk
0:01:29]} 21. Nb1 {[%clk 0:01:20.9]} 21... Ra2 {[%clk 0:01:10.2]} 22. Qxc6
{[%clk 0:01:20.1]} 22... Nc5 {[%clk 0:01:00.5]} 23. Bf4 {[%clk 0:00:45.6]} 23...
e5 {[%clk 0:00:51]} 24. Be3 {[%clk 0:00:45.8]} 24... Rxe2 {[%clk 0:00:48]} 25.
Nc3 {[%clk 0:00:39.3]} 25... Nxd3 {[%clk 0:00:22.4]} 26. Nxe2 {[%clk 0:00:35.6]}
26... e4 {[%clk 0:00:19.8]} 27. Nf4 {[%clk 0:00:32.8]} 27... f5 {[%clk
0:00:17.8]} 28. Nxd3 {[%clk 0:00:31.9]} 28... exd3 {[%clk 0:00:17.1]} 29. Qd5+
{[%clk 0:00:32.6]} 29... Kh8 {[%clk 0:00:15.1]} 30. Qxd3 {[%clk 0:00:32.6]} 1-0

[Event "Early-Titled-Tuesday-Blitz-March-05-2024"]
[Site "Chess.com"]
[Date "2024.03.05"]
[Round "8"]
[White "Ralf61"]
[Black "martinmena"]
[Result "1-0"]
[WhiteElo "2539"]
[BlackElo "2295"]
[TimeControl "180+1"]
[EndTime "9:29:31 PST"]
[Termination "Ralf61 won by resignation"]

1. Nf3 {[%clk 0:02:58.9]} 1... d5 {[%clk 0:02:59.6]} 2. d4 {[%clk 0:02:58.1]}
2... Nf6 {[%clk 0:02:57.2]} 3. c4 {[%clk 0:02:57.5]} 3... e6 {[%clk 0:02:57.5]}
4. Nc3 {[%clk 0:02:55.5]} 4... Be7 {[%clk 0:02:57.2]} 5. Bf4 {[%clk 0:02:53.8]}
5... O-O {[%clk 0:02:53.8]} 6. e3 {[%clk 0:02:53.3]} 6... a6 {[%clk 0:02:49.1]}
7. Rc1 {[%clk 0:02:50.4]} 7... dxc4 {[%clk 0:02:45.1]} 8. Bxc4 {[%clk
0:02:48.4]} 8... b5 {[%clk 0:02:45.6]} 9. Bd3 {[%clk 0:02:48]} 9... Bb7 {[%clk
0:02:44.3]} 10. O-O {[%clk 0:02:46.9]} 10... Bd6 {[%clk 0:02:44.3]} 11. Bg3
{[%clk 0:02:41.6]} 11... Bxg3 {[%clk 0:02:43.8]} 12. hxg3 {[%clk 0:02:40.7]}
12... Nbd7 {[%clk 0:02:44.3]} 13. Qe2 {[%clk 0:02:40.4]} 13... Qe7 {[%clk
0:02:43.7]} 14. e4 {[%clk 0:02:38.6]} 14... c5 {[%clk 0:02:39.8]} 15. e5 {[%clk
0:02:32.6]} 15... Nd5 {[%clk 0:02:36.6]} 16. dxc5 {[%clk 0:02:21.3]} 16... Nxc3
{[%clk 0:02:27.3]} 17. Rxc3 {[%clk 0:02:19.8]} 17... Nxc5 {[%clk 0:02:17]} 18.
Bb1 {[%clk 0:02:07.7]} 18... Rac8 {[%clk 0:02:11]} 19. Rfc1 {[%clk 0:02:04.9]}
19... Rfd8 {[%clk 0:01:06.8]} 20. Qe3 {[%clk 0:01:50.7]} 20... Nd7 {[%clk
0:00:48.1]} 21. Qa7 {[%clk 0:01:43.7]} 21... Rxc3 {[%clk 0:00:39.3]} 22. Rxc3
{[%clk 0:01:42.3]} 22... Bxf3 {[%clk 0:00:34.9]} 23. gxf3 {[%clk 0:01:37]} 23...
Qb4 {[%clk 0:00:26.4]} 24. Qc7 {[%clk 0:01:16.2]} 24... Qf8 {[%clk 0:00:20.6]}
25. Rd3 {[%clk 0:01:11]} 25... Qe8 {[%clk 0:00:17.5]} 26. Kg2 {[%clk 0:00:59.4]}
26... g6 {[%clk 0:00:17.5]} 27. Rd6 {[%clk 0:00:57.5]} 27... Kg7 {[%clk
0:00:14]} 28. Be4 {[%clk 0:00:56.9]} 28... Qe7 {[%clk 0:00:12.8]} 29. Bc6 {[%clk
0:00:54.2]} 29... Qg5 {[%clk 0:00:03.8]} 30. Rxd7 {[%clk 0:00:49.7]} 30... Rxd7
{[%clk 0:00:03.6]} 31. Bxd7 {[%clk 0:00:49.5]} 31... Qc1 {[%clk 0:00:04]} 32.
Qxc1 {[%clk 0:00:46]} 1-0

[Event "Early-Titled-Tuesday-Blitz-March-05-2024"]
[Site "Chess.com"]
[Date "2024.03.05"]
[Round "8"]
[White "Polish_fighter3000"]
[Black "KhalilMousavi98"]
[Result "1-0"]
[WhiteElo "3107"]
[BlackElo "2833"]
[TimeControl "180+1"]
[EndTime "9:29:33 PST"]
[Termination "Polish_fighter3000 won by resignation"]

1. e4 {[%clk 0:03:00.9]} 1... e5 {[%clk 0:02:50.6]} 2. Nf3 {[%clk 0:03:01.2]}
2... Nc6 {[%clk 0:02:50.1]} 3. Bc4 {[%clk 0:03:00.7]} 3... Nf6 {[%clk
0:02:48.2]} 4. d3 {[%clk 0:02:59.4]} 4... Bc5 {[%clk 0:02:47.9]} 5. c3 {[%clk
0:02:58.5]} 5... d6 {[%clk 0:02:44.3]} 6. O-O {[%clk 0:02:56.2]} 6... a6 {[%clk
0:02:37]} 7. a4 {[%clk 0:02:53.6]} 7... h6 {[%clk 0:02:33.8]} 8. Re1 {[%clk
0:02:52.5]} 8... Ba7 {[%clk 0:02:32.7]} 9. b4 {[%clk 0:02:37.9]} 9... O-O {[%clk
0:02:31.7]} 10. h3 {[%clk 0:02:32.5]} 10... Ne7 {[%clk 0:02:24]} 11. d4 {[%clk
0:02:22.2]} 11... Ng6 {[%clk 0:01:46.6]} 12. Bf1 {[%clk 0:02:16.8]} 12... Re8
{[%clk 0:01:45]} 13. Nbd2 {[%clk 0:02:11.1]} 13... d5 {[%clk 0:01:18.7]} 14.
exd5 {[%clk 0:02:02.5]} 14... e4 {[%clk 0:01:12.8]} 15. Nh2 {[%clk 0:01:58.3]}
15... Nxd5 {[%clk 0:01:11.8]} 16. Qb3 {[%clk 0:01:45.2]} 16... Nxc3 {[%clk
0:00:48.4]} 17. Bc4 {[%clk 0:00:58.2]} 17... Be6 {[%clk 0:00:35.7]} 18. Qxc3
{[%clk 0:00:48.9]} 18... Bxd4 {[%clk 0:00:34.9]} 19. Qa3 {[%clk 0:00:48.3]}
19... Bxa1 {[%clk 0:00:21.7]} 20. Qxa1 {[%clk 0:00:49.2]} 20... Nf4 {[%clk
0:00:15.6]} 21. Nxe4 {[%clk 0:00:41.9]} 21... Nxg2 {[%clk 0:00:08.3]} 22. Bxh6
{[%clk 0:00:35.1]} 22... gxh6 {[%clk 0:00:02.9]} 23. Kxg2 {[%clk 0:00:31]} 23...
Bxc4 {[%clk 0:00:02.2]} 24. Nf6+ {[%clk 0:00:30.9]} 24... Qxf6 {[%clk
0:00:01.8]} 25. Rxe8+ {[%clk 0:00:30.3]} 25... Rxe8 {[%clk 0:00:01.3]} 26. Qxf6
{[%clk 0:00:30.7]} 1-0

[Event "Early-Titled-Tuesday-Blitz-March-05-2024"]
[Site "Chess.com"]
[Date "2024.03.05"]
[Round "8"]
[White "Semetey"]
[Black "GreenPeach24"]
[Result "0-1"]
[WhiteElo "2576"]
[BlackElo "2487"]
[TimeControl "180+1"]
[EndTime "9:29:34 PST"]
[Termination "GreenPeach24 won on time"]

1. e4 {[%clk 0:02:45.5]} 1... c6 {[%clk 0:02:59.6]} 2. Nc3 {[%clk 0:02:40]} 2...
d5 {[%clk 0:02:59.6]} 3. Nf3 {[%clk 0:02:40.9]} 3... g6 {[%clk 0:02:59.2]} 4. h3
{[%clk 0:02:34.5]} 4... Bg7 {[%clk 0:02:57.7]} 5. d4 {[%clk 0:02:34.2]} 5...
dxe4 {[%clk 0:02:57]} 6. Nxe4 {[%clk 0:02:33.9]} 6... Nf6 {[%clk 0:02:57.5]} 7.
Bd3 {[%clk 0:02:19.5]} 7... O-O {[%clk 0:02:56.9]} 8. O-O {[%clk 0:02:18.6]}
8... Nbd7 {[%clk 0:02:57.3]} 9. c3 {[%clk 0:02:08.5]} 9... Qc7 {[%clk
0:02:54.9]} 10. Re1 {[%clk 0:02:05.4]} 10... Nxe4 {[%clk 0:02:52.2]} 11. Bxe4
{[%clk 0:02:03.7]} 11... c5 {[%clk 0:02:51.3]} 12. Bg5 {[%clk 0:02:00.2]} 12...
Nf6 {[%clk 0:02:37.7]} 13. Bc2 {[%clk 0:01:51.8]} 13... cxd4 {[%clk 0:02:34.3]}
14. Nxd4 {[%clk 0:01:24.7]} 14... a6 {[%clk 0:02:33]} 15. Bb3 {[%clk 0:01:20.6]}
15... b5 {[%clk 0:02:25.5]} 16. Qe2 {[%clk 0:01:20.1]} 16... Re8 {[%clk
0:02:08.7]} 17. Nf3 {[%clk 0:01:10.3]} 17... e6 {[%clk 0:01:53.1]} 18. Rad1
{[%clk 0:01:05.2]} 18... Bb7 {[%clk 0:01:51.7]} 19. Ne5 {[%clk 0:01:05.2]} 19...
Nd5 {[%clk 0:01:48.3]} 20. Nd3 {[%clk 0:00:52.5]} 20... a5 {[%clk 0:01:41.8]}
21. a4 {[%clk 0:00:50.8]} 21... bxa4 {[%clk 0:01:24]} 22. Bxa4 {[%clk
0:00:51.7]} 22... Bc6 {[%clk 0:01:24.1]} 23. Bxc6 {[%clk 0:00:48.4]} 23... Qxc6
{[%clk 0:01:25]} 24. Nf4 {[%clk 0:00:24]} 24... Nb6 {[%clk 0:01:20.6]} 25. Nd3
{[%clk 0:00:19.4]} 25... Nc4 {[%clk 0:01:12.1]} 26. Bc1 {[%clk 0:00:18.8]} 26...
Reb8 {[%clk 0:01:06.7]} 27. Qc2 {[%clk 0:00:08.7]} 27... Rb7 {[%clk 0:00:59.9]}
28. b3 {[%clk 0:00:06.3]} 28... Nb6 {[%clk 0:00:59.1]} 29. c4 {[%clk 0:00:06.5]}
29... a4 {[%clk 0:00:57.5]} 30. Ne5 {[%clk 0:00:01.8]} 30... Qc7 {[%clk
0:00:53]} 31. Bb2 {[%clk 0:00:01.4]} 31... axb3 {[%clk 0:00:52.4]} 32. Qxb3
{[%clk 0:00:02.2]} 32... Na4 {[%clk 0:00:48.2]} 0-1

[Event "Early-Titled-Tuesday-Blitz-March-05-2024"]
[Site "Chess.com"]
[Date "2024.03.05"]
[Round "8"]
[White "TheCavemanChess"]
[Black "sorch29"]
[Result "1-0"]
[WhiteElo "2719"]
[BlackElo "2458"]
[TimeControl "180+1"]
[EndTime "9:29:35 PST"]
[Termination "TheCavemanChess won on time"]

1. Nf3 {[%clk 0:03:00.9]} 1... Nf6 {[%clk 0:02:56.3]} 2. g3 {[%clk 0:03:01.8]}
2... g6 {[%clk 0:02:56.6]} 3. Bg2 {[%clk 0:03:02.7]} 3... Bg7 {[%clk 0:02:57.3]}
4. O-O {[%clk 0:03:03.6]} 4... O-O {[%clk 0:02:57.9]} 5. c4 {[%clk 0:03:03]}
5... d6 {[%clk 0:02:57.2]} 6. Nc3 {[%clk 0:03:02.9]} 6... e5 {[%clk 0:02:57.3]}
7. d3 {[%clk 0:02:58.9]} 7... Nc6 {[%clk 0:02:56.4]} 8. Rb1 {[%clk 0:02:59.1]}
8... a5 {[%clk 0:02:56.1]} 9. a3 {[%clk 0:02:59.2]} 9... Re8 {[%clk 0:02:51.3]}
10. Bg5 {[%clk 0:02:54.3]} 10... h6 {[%clk 0:02:29.6]} 11. Bxf6 {[%clk
0:02:53.2]} 11... Bxf6 {[%clk 0:02:30.5]} 12. b4 {[%clk 0:02:52.5]} 12... axb4
{[%clk 0:02:31.4]} 13. axb4 {[%clk 0:02:52]} 13... Bg7 {[%clk 0:02:27.8]} 14.
Nd2 {[%clk 0:02:38.5]} 14... Nd4 {[%clk 0:02:24.6]} 15. e3 {[%clk 0:02:38.5]}
15... Ne6 {[%clk 0:02:21.3]} 16. Nb3 {[%clk 0:02:20.3]} 16... c6 {[%clk
0:02:20.3]} 17. b5 {[%clk 0:02:20.1]} 17... Bd7 {[%clk 0:02:18.1]} 18. Qc2
{[%clk 0:02:15.6]} 18... Qc7 {[%clk 0:02:15.3]} 19. Nd2 {[%clk 0:02:08.2]} 19...
Ra5 {[%clk 0:02:03.6]} 20. Rb2 {[%clk 0:02:00.9]} 20... cxb5 {[%clk 0:01:39.4]}
21. Rfb1 {[%clk 0:01:49.9]} 21... Nc5 {[%clk 0:00:36.9]} 22. Nxb5 {[%clk
0:01:42.4]} 22... Bxb5 {[%clk 0:00:30.2]} 23. Rxb5 {[%clk 0:01:43.3]} 23... Rxb5
{[%clk 0:00:26]} 24. Rxb5 {[%clk 0:01:44.2]} 24... Re7 {[%clk 0:00:21.9]} 25.
Bd5 {[%clk 0:01:43.6]} 25... Kh7 {[%clk 0:00:21.1]} 26. Nb3 {[%clk 0:01:37.7]}
26... b6 {[%clk 0:00:20]} 27. Nc1 {[%clk 0:01:32]} 27... f5 {[%clk 0:00:19]} 28.
Na2 {[%clk 0:01:31.3]} 28... e4 {[%clk 0:00:17.1]} 29. Nb4 {[%clk 0:01:30.8]}
29... exd3 {[%clk 0:00:15.5]} 30. Nxd3 {[%clk 0:01:30.8]} 30... Qa7 {[%clk
0:00:16.2]} 31. Nf4 {[%clk 0:01:29.7]} 31... Qa1+ {[%clk 0:00:15.2]} 32. Kg2
{[%clk 0:01:30.3]} 32... Qa7 {[%clk 0:00:10.2]} 33. h4 {[%clk 0:01:29.7]} 33...
h5 {[%clk 0:00:09.8]} 34. Nxh5 {[%clk 0:01:28.6]} 34... Be5 {[%clk 0:00:07]} 35.
Nf4 {[%clk 0:01:24.6]} 35... Kh6 {[%clk 0:00:04.8]} 36. h5 {[%clk 0:01:22.4]}
36... Bxf4 {[%clk 0:00:05]} 37. exf4 {[%clk 0:01:21.6]} 37... Qa1 {[%clk
0:00:02.9]} 38. hxg6 {[%clk 0:01:21.1]} 38... Kxg6 {[%clk 0:00:03.2]} 39. Rxb6
{[%clk 0:01:20.6]} 39... Rh7 {[%clk 0:00:03.3]} 40. Rxd6+ {[%clk 0:01:20.3]}
40... Kg7 {[%clk 0:00:02.3]} 41. Kf3 {[%clk 0:01:07]} 41... Qh1+ {[%clk
0:00:02.3]} 42. Ke2 {[%clk 0:01:07.4]} 1-0

[Event "Early-Titled-Tuesday-Blitz-March-05-2024"]
[Site "Chess.com"]
[Date "2024.03.05"]
[Round "8"]
[White "enriquebutti"]
[Black "Let_it_be_1"]
[Result "0-1"]
[WhiteElo "2228"]
[BlackElo "2588"]
[TimeControl "180+1"]
[EndTime "9:29:36 PST"]
[Termination "Let_it_be_1 won by checkmate"]

1. d4 {[%clk 0:03:00.2]} 1... d5 {[%clk 0:02:59.6]} 2. c4 {[%clk 0:02:58.5]}
2... e6 {[%clk 0:03:00.1]} 3. Nf3 {[%clk 0:02:57.7]} 3... Nf6 {[%clk 0:03:00.1]}
4. Nc3 {[%clk 0:02:55.9]} 4... Be7 {[%clk 0:03:00.2]} 5. e3 {[%clk 0:02:55.7]}
5... O-O {[%clk 0:02:59.9]} 6. b3 {[%clk 0:02:55.4]} 6... Nbd7 {[%clk
0:02:59.5]} 7. Bb2 {[%clk 0:02:55]} 7... c5 {[%clk 0:02:57.9]} 8. Bd3 {[%clk
0:02:51.5]} 8... dxc4 {[%clk 0:02:56.2]} 9. bxc4 {[%clk 0:02:49.2]} 9... b6
{[%clk 0:02:56]} 10. O-O {[%clk 0:02:47.1]} 10... Bb7 {[%clk 0:02:55.7]} 11. Qe2
{[%clk 0:02:42.2]} 11... cxd4 {[%clk 0:02:53.6]} 12. exd4 {[%clk 0:02:41.6]}
12... a6 {[%clk 0:02:50.9]} 13. Rad1 {[%clk 0:02:41]} 13... Qc7 {[%clk
0:02:49.9]} 14. Ne5 {[%clk 0:02:40.1]} 14... Nxe5 {[%clk 0:02:44.7]} 15. dxe5
{[%clk 0:02:39.7]} 15... Nd7 {[%clk 0:02:44.4]} 16. f4 {[%clk 0:02:39]} 16... g6
{[%clk 0:02:41.8]} 17. Kh1 {[%clk 0:02:17.8]} 17... Rfd8 {[%clk 0:02:34.2]} 18.
Ne4 {[%clk 0:02:13.1]} 18... Nc5 {[%clk 0:02:33.9]} 19. Nd6 {[%clk 0:02:06.6]}
19... Nxd3 {[%clk 0:02:11.8]} 20. Rxd3 {[%clk 0:02:05.1]} 20... Rd7 {[%clk
0:02:07.8]} 21. Rfd1 {[%clk 0:01:53.6]} 21... Rad8 {[%clk 0:02:03.2]} 22. Qe3
{[%clk 0:01:40.3]} 22... Qc6 {[%clk 0:01:49.6]} 23. R1d2 {[%clk 0:01:38.9]}
23... Ba8 {[%clk 0:01:29.2]} 24. Ba3 {[%clk 0:01:31.3]} 24... h5 {[%clk
0:01:13.7]} 25. Qg3 {[%clk 0:01:26.5]} 25... h4 {[%clk 0:01:10.9]} 26. Qg4
{[%clk 0:01:25.4]} 26... Qa4 {[%clk 0:00:48.2]} 27. f5 {[%clk 0:01:11.2]} 27...
exf5 {[%clk 0:00:47.3]} 28. Nxf5 {[%clk 0:01:10.6]} 28... Rxd3 {[%clk
0:00:33.6]} 29. Nxe7+ {[%clk 0:01:09.6]} 29... Kg7 {[%clk 0:00:33.2]} 30. Nf5+
{[%clk 0:01:02.4]} 30... Kg8 {[%clk 0:00:32]} 31. Ne7+ {[%clk 0:00:53.6]} 31...
Kf8 {[%clk 0:00:25.1]} 32. Nxg6+ {[%clk 0:00:48.5]} 32... Ke8 {[%clk 0:00:25.5]}
33. Rxd3 {[%clk 0:00:36.2]} 33... Rxd3 {[%clk 0:00:25.7]} 34. Qc8+ {[%clk
0:00:35.4]} 34... Rd8 {[%clk 0:00:25.9]} 35. Qc7 {[%clk 0:00:30.1]} 35... Qd1#
{[%clk 0:00:24.7]} 0-1

[Event "Early-Titled-Tuesday-Blitz-March-05-2024"]
[Site "Chess.com"]
[Date "2024.03.05"]
[Round "8"]
[White "fandebobbyfischer"]
[Black "JaackCamel"]
[Result "0-1"]
[WhiteElo "2690"]
[BlackElo "2235"]
[TimeControl "180+1"]
[EndTime "9:29:38 PST"]
[Termination "JaackCamel won on time"]

1. e4 {[%clk 0:03:00.9]} 1... e6 {[%clk 0:02:57.6]} 2. d4 {[%clk 0:03:00.7]}
2... d5 {[%clk 0:02:57]} 3. Nd2 {[%clk 0:03:01.3]} 3... c5 {[%clk 0:02:56.3]} 4.
Ngf3 {[%clk 0:02:58.9]} 4... cxd4 {[%clk 0:02:56.1]} 5. Nxd4 {[%clk 0:02:56.5]}
5... Nc6 {[%clk 0:02:55.6]} 6. Nxc6 {[%clk 0:02:56.1]} 6... bxc6 {[%clk
0:02:55.1]} 7. Bd3 {[%clk 0:02:56.5]} 7... Nf6 {[%clk 0:02:53.9]} 8. O-O {[%clk
0:02:56.3]} 8... Be7 {[%clk 0:02:53.2]} 9. c4 {[%clk 0:02:56.1]} 9... h6 {[%clk
0:02:52.4]} 10. h3 {[%clk 0:02:55.6]} 10... a5 {[%clk 0:02:50.6]} 11. Qc2 {[%clk
0:02:54.9]} 11... Ba6 {[%clk 0:02:48.4]} 12. Rd1 {[%clk 0:02:54.3]} 12... Qb8
{[%clk 0:02:41.8]} 13. b3 {[%clk 0:02:26.3]} 13... O-O {[%clk 0:02:40.6]} 14.
Bb2 {[%clk 0:02:26.1]} 14... a4 {[%clk 0:02:39.8]} 15. Rab1 {[%clk 0:02:24.6]}
15... a3 {[%clk 0:02:37.6]} 16. Ba1 {[%clk 0:02:22.6]} 16... Rd8 {[%clk
0:02:32.2]} 17. exd5 {[%clk 0:02:13.5]} 17... cxd5 {[%clk 0:02:30.2]} 18. b4
{[%clk 0:01:57.7]} 18... dxc4 {[%clk 0:02:25.2]} 19. Nxc4 {[%clk 0:01:58.6]}
19... Bxc4 {[%clk 0:02:11]} 20. Qxc4 {[%clk 0:01:49.7]} 20... Nd5 {[%clk
0:02:06.4]} 21. Be4 {[%clk 0:01:36]} 21... Ra4 {[%clk 0:01:31.2]} 22. Bxd5
{[%clk 0:00:29]} 22... exd5 {[%clk 0:01:29.3]} 23. Qc3 {[%clk 0:00:26.9]} 23...
Bf6 {[%clk 0:01:26.9]} 24. Qb3 {[%clk 0:00:22.2]} 24... Bxa1 {[%clk 0:01:17.6]}
25. Qxa4 {[%clk 0:00:22.3]} 25... Bb2 {[%clk 0:01:17.8]} 26. b5 {[%clk
0:00:14.1]} 26... d4 {[%clk 0:01:17.6]} 27. Qb3 {[%clk 0:00:14]} 27... Qf4
{[%clk 0:01:14.8]} 28. Rxb2 {[%clk 0:00:13.1]} 28... axb2 {[%clk 0:01:13.8]} 29.
Qxb2 {[%clk 0:00:14]} 29... d3 {[%clk 0:01:12.4]} 30. b6 {[%clk 0:00:14.5]}
30... Qe4 {[%clk 0:01:02.6]} 31. Qc3 {[%clk 0:00:04.3]} 31... d2 {[%clk
0:00:58.3]} 32. Kh2 {[%clk 0:00:01.8]} 32... Rd6 {[%clk 0:00:54.3]} 33. b7
{[%clk 0:00:01.4]} 33... Qxb7 {[%clk 0:00:52.4]} 34. Rxd2 {[%clk 0:00:01.1]}
34... Rc6 {[%clk 0:00:48.6]} 0-1

[Event "Early-Titled-Tuesday-Blitz-March-05-2024"]
[Site "Chess.com"]
[Date "2024.03.05"]
[Round "8"]
[White "Casper"]
[Black "Chernov_Alexander_A"]
[Result "1/2-1/2"]
[WhiteElo "2510"]
[BlackElo "2357"]
[TimeControl "180+1"]
[EndTime "9:29:41 PST"]
[Termination "Game drawn by repetition"]

1. e4 {[%clk 0:02:53.7]} 1... d6 {[%clk 0:02:59.4]} 2. b3 {[%clk 0:02:53.1]}
2... Nf6 {[%clk 0:02:58.8]} 3. Qe2 {[%clk 0:02:53.3]} 3... Nc6 {[%clk
0:02:55.2]} 4. Bb2 {[%clk 0:02:53.2]} 4... e5 {[%clk 0:02:54.1]} 5. Nf3 {[%clk
0:02:52.9]} 5... Be7 {[%clk 0:02:52.5]} 6. Nc3 {[%clk 0:02:52]} 6... O-O {[%clk
0:02:51.7]} 7. O-O-O {[%clk 0:02:51.9]} 7... a5 {[%clk 0:02:49.5]} 8. d4 {[%clk
0:02:48.2]} 8... exd4 {[%clk 0:02:44.2]} 9. Nxd4 {[%clk 0:02:49.1]} 9... Bd7
{[%clk 0:02:33]} 10. Nd5 {[%clk 0:02:48.7]} 10... Nxd5 {[%clk 0:02:29.5]} 11.
exd5 {[%clk 0:02:49.6]} 11... Nxd4 {[%clk 0:02:28.6]} 12. Rxd4 {[%clk
0:02:42.1]} 12... Bf6 {[%clk 0:02:26.5]} 13. Re4 {[%clk 0:02:42.7]} 13... Bxb2+
{[%clk 0:02:21.9]} 14. Kxb2 {[%clk 0:02:43.6]} 14... Qf6+ {[%clk 0:02:13.3]} 15.
Kb1 {[%clk 0:02:40.4]} 15... a4 {[%clk 0:02:05.6]} 16. Qd2 {[%clk 0:02:35.8]}
16... a3 {[%clk 0:01:54.5]} 17. Qd4 {[%clk 0:02:29]} 17... Qg6 {[%clk
0:01:21.3]} 18. g4 {[%clk 0:02:17.6]} 18... f5 {[%clk 0:01:16.5]} 19. Re7 {[%clk
0:02:17.2]} 19... Rae8 {[%clk 0:01:06.9]} 20. Rxe8 {[%clk 0:01:40.7]} 20... Rxe8
{[%clk 0:01:06]} 21. Bd3 {[%clk 0:01:39.5]} 21... Qxg4 {[%clk 0:01:05.3]} 22. f4
{[%clk 0:01:01.8]} 22... Qf3 {[%clk 0:00:32.4]} 23. Rg1 {[%clk 0:00:59.8]} 23...
g6 {[%clk 0:00:32.4]} 24. Qb4 {[%clk 0:00:47.3]} 24... Qe3 {[%clk 0:00:31.3]}
25. Rf1 {[%clk 0:00:47.4]} 25... Qa7 {[%clk 0:00:24.9]} 26. h4 {[%clk 0:00:43]}
26... Qc5 {[%clk 0:00:23.6]} 27. Qxb7 {[%clk 0:00:32.2]} 27... Qc3 {[%clk
0:00:22.1]} 28. Kc1 {[%clk 0:00:30.8]} 28... Re3 {[%clk 0:00:12]} 29. Kd1 {[%clk
0:00:27.6]} 29... Rxd3+ {[%clk 0:00:11.6]} 30. cxd3 {[%clk 0:00:28.5]} 30...
Qxd3+ {[%clk 0:00:11.6]} 31. Ke1 {[%clk 0:00:29.2]} 31... Qe3+ {[%clk
0:00:11.6]} 32. Kd1 {[%clk 0:00:29.9]} 32... Qd3+ {[%clk 0:00:12]} 33. Ke1
{[%clk 0:00:30.6]} 33... Qe3+ {[%clk 0:00:12.1]} 34. Kd1 {[%clk 0:00:30.8]}
34... Qd3+ {[%clk 0:00:12.5]} 1/2-1/2